bitfinex-derivatives/quotes_SOLF0:USTF0_20250816
["timestamp","ask_amount","ask_price","bid_price","bid_amount"]
[1755377579274,47.32134005,189.15,189.06,1.60828169]
[1755377579275,3.9685818,189.1,189.07,1.61]
[1755377579574,3.03,189.09,189.07,1.61]
[1755377581166,3.03,189.09,189.06,3.21828169]
[1755377581769,5.57663755,189.08,189.02,1.60828169]
[1755377581974,6.9985451,189.07,189.03,1.61]
[1755377582176,3.03,189.07,189.03,1.61]
[1755377582373,3.03,189.07,189.04,1.61]
[1755377582877,3.03,189.07,189.05,1.61]
[1755377583574,3.03,189.07,189.04,1.61]
[1755377585376,3.03,189.07,189.02,3.21828169]
[1755377588073,3.03,189.07,189.03,1.61]
[1755377589482,3.03,189.07,189.02,6.89538169]
[1755377589779,3.03,189.07,189.04,1.61]
[1755377592082,3.03,189.07,189.03,3.21828169]
[1755377593585,3.03,189.07,189.03,1.61]
[1755377593786,3.03,189.07,189.03,3.21828169]
[1755377595181,3.96708455,189.06,189.03,3.21828169]
[1755377595381,3.03,189.05,189.04,1.61]
[1755377596192,3.03,189.05,189.03,1.60828169]
[1755377596582,1.60828169,189.06,188.98,129.67]
[1755377596785,3.03,189.03,188.99,1.61]
[1755377596982,3.03,189.03,189.0,1.61]
[1755377597482,3.03,189.02,188.98,131.27828169]
[1755377597883,3.03,189.02,188.99,1.61]
[1755377598584,3.03,189.02,188.98,131.27828169]
[1755377599781,3.03,189.02,188.98,3.21828169]
[1755377599987,3.96757483,189.01,188.98,1.60828169]
[1755377600291,2.84,189.0,188.98,1.60828169]
[1755377601190,2.84,189.0,188.96,201.60828169]
[1755377601391,4.44828169,189.0,188.96,200.0]
[1755377601597,2.84,188.97,188.96,196.88]
[1755377601795,2.84,188.97,188.96,193.76]
[1755377601796,6.80560779,188.97,188.96,193.76]
[1755377602091,11.40183554,188.97,188.96,193.76]
[1755377602388,6.80560779,188.97,188.96,193.76]
[1755377602790,2.84,188.97,188.96,196.7]
[1755377603387,2.84,188.97,188.96,193.76]
[1755377604191,6.79822192,188.97,188.96,193.76]
[1755377605198,2.84,188.97,188.96,193.76]
[1755377609596,2.84,188.97,188.96,196.7]
[1755377611391,2.84,188.99,188.97,2.94]
[1755377611594,2.51545554,188.99,188.96,193.76]
[1755377611799,2.84,188.98,188.96,193.76]
[1755377616304,3.36,188.97,188.94,200.0]
[1755377616606,2.51545554,188.95,188.94,58.30829323]
[1755377616800,141.30480408,188.95,188.88,2.94]
[1755377617007,141.30480408,188.95,188.75,356.46067146]
[1755377617008,2.51545554,188.89,188.83,2.94]
[1755377618510,2.51545554,188.9,188.83,2.94]
[1755377618905,3.93484888,188.89,188.83,2.94]
[1755377619106,2.51545554,188.9,188.83,2.94]
[1755377619306,3.93196886,188.89,188.83,2.94]
[1755377619509,2.51545554,188.9,188.83,2.94]
[1755377619805,3.93188519,188.89,188.83,2.94]
[1755377620116,2.51545554,188.87,188.77,2.94]
[1755377620409,3.93188519,188.86,188.77,2.94]
[1755377620606,2.51545554,188.87,188.77,2.94]
[1755377621209,3.92623639,188.86,188.77,2.94]
[1755377621408,2.51545554,188.87,188.77,2.94]
[1755377622207,3.92613815,188.86,188.77,2.94]
[1755377622413,2.51545554,188.87,188.77,2.94]
[1755377622614,3.9235701,188.86,188.77,2.94]
[1755377622812,2.51545554,188.87,188.77,2.94]
[1755377623008,3.9235701,188.86,188.77,2.94]
[1755377623209,2.51545554,188.87,188.77,2.94]
[1755377623511,139.09150448,188.86,188.77,2.94]
[1755377623712,3.9216123,188.85,188.77,2.94]
[1755377626110,11.84657256,188.99,188.77,2.94]
[1755377626111,130.56,188.87,188.77,2.94]
[1755377626315,3.91524214,188.86,188.77,2.94]
[1755377626505,130.56,188.87,188.77,2.94]
[1755377626710,3.91565025,188.86,188.77,2.94]
[1755377627017,130.56,188.87,188.77,2.94]
[1755377627316,3.91437027,188.86,188.77,2.94]
[1755377627515,130.52,188.88,188.77,2.94]
[1755377627812,8.45238672,188.87,188.77,2.94]
[1755377628015,3.91437027,188.86,188.77,2.94]
[1755377628208,130.52,188.88,188.77,2.94]
[1755377628409,8.45136472,188.87,188.77,2.94]
[1755377628712,3.91334827,188.86,188.77,2.94]
[1755377628915,2.51545554,188.87,188.77,2.94]
[1755377629111,8.45089961,188.86,188.77,2.94]
[1755377629307,3.91366713,188.85,188.77,2.94]
[1755377629515,2.51545554,188.87,188.77,2.94]
[1755377629811,8.44857367,188.86,188.77,2.94]
[1755377630014,3.91256568,188.85,188.77,2.94]
[1755377630216,2.51545554,188.87,188.77,2.94]
[1755377630515,8.42923002,188.86,188.77,2.94]
[1755377630711,3.91195161,188.85,188.77,2.94]
[1755377630915,2.51545554,188.87,188.77,2.94]
[1755377631114,8.42958833,188.86,188.77,2.94]
[1755377631314,3.91195161,188.85,188.77,2.94]
[1755377631509,2.51545554,188.87,188.77,2.94]
[1755377631714,8.42882067,188.86,188.77,2.94]
[1755377631914,3.91157759,188.85,188.77,2.94]
[1755377632111,130.5,188.88,188.77,2.94]
[1755377632415,3.91142998,188.87,188.77,2.94]
[1755377632615,2.51545554,188.88,188.77,2.94]
[1755377632817,3.91108384,188.87,188.77,2.94]
[1755377633016,133.05545554,188.88,188.77,2.94]
[1755377633219,3.91144184,188.87,188.77,2.94]
[1755377633418,3.91144184,188.86,188.77,2.94]
[1755377633618,133.05545554,188.88,188.77,2.94]
[1755377633820,8.42875394,188.87,188.77,2.94]
[1755377634016,3.91146227,188.86,188.77,2.94]
[1755377634320,48.2610526,188.9,188.78,2.51545554]
[1755377634513,130.5,188.88,188.79,2.86]
[1755377634713,8.43006617,188.87,188.79,2.86]
[1755377635018,3.91206386,188.86,188.79,2.86]
[1755377635217,130.5,188.88,188.79,2.86]
[1755377635418,8.43147827,188.87,188.79,2.86]
[1755377635618,3.91257656,188.86,188.79,2.86]
[1755377635817,130.5,188.88,188.79,2.86]
[1755377636014,8.43161691,188.87,188.79,2.86]
[1755377636220,3.9127155,188.86,188.79,2.86]
[1755377636413,130.5,188.88,188.79,2.86]
[1755377636609,8.43395741,188.87,188.79,2.86]
[1755377636813,3.91379246,188.86,188.79,2.86]
[1755377637014,130.5,188.88,188.79,2.86]
[1755377637219,8.4352559,188.87,188.79,2.86]
[1755377637518,3.91509095,188.86,188.79,2.86]
[1755377637719,130.5,188.88,188.79,2.86]
[1755377637918,8.43677577,188.87,188.79,2.86]
[1755377638117,130.44,188.89,188.79,2.86]
[1755377638314,3.91636561,188.88,188.79,2.86]
[1755377638525,130.44,188.89,188.79,2.86]
[1755377638722,3.9163247,188.88,188.79,2.86]
[1755377639019,130.44,188.89,188.79,2.86]
[1755377639320,8.44187278,188.88,188.79,2.86]
[1755377639514,3.9163247,188.87,188.79,2.86]
[1755377639709,130.44,188.89,188.79,2.86]
[1755377639914,8.4438998,188.88,188.79,2.86]
[1755377640221,3.91835172,188.87,188.79,8.1535]
[1755377640420,48.2610526,188.9,188.81,2.51545554]
[1755377640616,3.91973179,188.89,188.82,2.86]
[1755377640818,48.2610526,188.9,188.82,2.86]
[1755377641323,3.92190085,188.89,188.82,2.86]
[1755377641524,48.2610526,188.9,188.82,2.86]
[1755377643227,3.92612003,188.89,188.82,2.86]
[1755377643527,48.2610526,188.9,188.82,2.86]
[1755377643821,3.92669908,188.89,188.82,2.86]
[1755377644026,48.2610526,188.9,188.82,2.86]
[1755377644228,3.92863257,188.89,188.82,2.86]
[1755377644529,48.2610526,188.9,188.82,2.86]
[1755377644723,3.92916679,188.89,188.82,2.86]
[1755377645022,48.2610526,188.9,188.82,2.86]
[1755377645223,48.2610526,188.9,188.85,2.86]
[1755377646329,135.08969038,188.94,188.85,2.86]
[1755377646524,8.4763062,188.93,188.85,2.86]
[1755377646720,8.4763062,188.92,188.85,2.86]
[1755377646923,8.4763062,188.91,188.85,2.86]
[1755377647124,3.93344828,188.9,188.85,2.86]
[1755377647429,135.08969038,188.94,188.85,2.86]
[1755377647627,8.47806142,188.93,188.85,2.86]
[1755377647925,8.47806142,188.92,188.85,2.86]
[1755377648124,3.93420657,188.91,188.87,2.51545554]
[1755377648429,130.56,188.97,188.88,2.86]
[1755377648630,8.47880968,188.96,188.88,2.86]
[1755377648830,8.47880968,188.95,188.88,2.86]
[1755377649020,8.47880968,188.94,188.88,2.86]
[1755377649223,3.93447445,188.93,188.88,2.86]
[1755377649422,130.56,188.97,188.88,2.86]
[1755377649631,8.47997856,188.96,188.88,2.86]
[1755377649827,8.47997856,188.95,188.88,2.86]
[1755377650027,3.93500861,188.94,188.88,2.86]
[1755377650326,3.93500861,188.93,188.88,2.86]
[1755377650529,134.98969038,188.98,188.88,2.86]
[1755377650826,8.48127915,188.97,188.88,2.86]
[1755377651022,8.48127915,188.96,188.88,2.86]
[1755377651228,8.48144129,188.95,188.88,2.86]
[1755377651428,3.93560444,188.94,188.88,2.86]
[1755377651616,134.98969038,188.98,188.88,2.86]
[1755377651819,8.48256964,188.97,188.88,2.86]
[1755377652029,8.48256964,188.96,188.88,2.86]
[1755377652236,8.48256964,188.95,188.88,2.86]
[1755377652528,3.93619487,188.94,188.88,2.86]
[1755377652827,134.92969038,188.98,188.88,2.86]
[1755377653027,8.48360179,188.97,188.88,2.86]
[1755377653226,8.48360179,188.96,188.88,2.86]
[1755377653427,3.93666237,188.95,188.88,2.86]
[1755377653630,3.93666237,188.94,188.88,2.86]
[1755377653831,130.48,188.98,188.88,2.86]
[1755377654024,8.48486239,188.97,188.88,2.86]
[1755377654225,8.48489472,188.96,188.88,2.86]
[1755377654427,3.9372395,188.95,188.88,2.86]
[1755377654724,130.48,188.98,188.88,2.86]
[1755377654921,8.48615571,188.97,188.88,2.86]
[1755377655126,8.48615571,188.96,188.88,2.86]
[1755377655319,3.93783153,188.95,188.88,2.86]
[1755377655522,130.48,188.98,188.88,2.86]
[1755377655725,8.48775548,188.97,188.88,2.86]
[1755377655921,8.48775548,188.96,188.88,2.86]
[1755377656232,3.93856395,188.95,188.88,2.86]
[1755377656430,130.48,188.98,188.88,2.86]
[1755377656632,8.48960124,188.97,188.88,2.86]
[1755377656931,3.93940897,188.96,188.88,2.86]
[1755377657132,3.93940897,188.95,188.88,2.86]
[1755377657333,130.48,188.98,188.88,2.86]
[1755377657633,8.49121286,188.97,188.88,2.86]
[1755377657932,3.94014638,188.96,188.88,2.86]
[1755377658130,3.94014638,188.95,188.88,2.86]
[1755377658322,130.48,188.98,188.88,2.86]
[1755377658521,8.49287703,188.97,188.88,2.86]
[1755377658726,3.94090761,188.96,188.88,2.86]
[1755377658930,3.94090761,188.95,188.88,2.86]
[1755377659131,130.48,188.98,188.88,2.86]
[1755377659331,8.49362405,188.97,188.88,2.86]
[1755377659630,3.94183156,188.96,188.88,2.86]
[1755377659833,3.94183156,188.95,188.88,2.86]
[1755377660134,130.48,188.98,188.88,2.86]
[1755377660334,3.94267487,188.97,188.88,2.86]
[1755377660530,3.94267487,188.96,188.88,2.86]
[1755377660730,3.94267487,188.95,188.88,2.86]
[1755377661030,130.48,188.98,188.88,2.86]
[1755377661232,3.9434458,188.97,188.88,2.86]
[1755377661534,3.9434458,188.96,188.88,2.86]
[1755377661731,130.48,188.98,188.88,2.86]
[1755377661925,3.94289237,188.97,188.89,2.97]
[1755377662129,3.94289237,188.96,188.89,2.97]
[1755377662329,130.48,188.98,188.89,2.97]
[1755377662537,3.94214944,188.97,188.89,2.97]
[1755377662731,130.48,188.98,188.89,2.97]
[1755377662931,3.94214944,188.97,188.89,2.97]
[1755377663128,130.48,188.98,188.89,2.97]
[1755377663328,3.94177085,188.97,188.89,2.97]
[1755377663638,130.48,188.98,188.89,2.97]
[1755377663938,3.94145014,188.97,188.89,2.97]
[1755377664238,130.48,188.98,188.89,2.97]
[1755377664438,3.94085409,188.97,188.89,2.97]
[1755377664638,130.48,188.98,188.89,2.97]
[1755377664840,3.94085409,188.97,188.89,5.2907]
[1755377665035,130.48,188.98,188.9,2.97]
[1755377665233,3.94073379,188.97,188.9,2.97]
[1755377665538,130.48,188.98,188.9,2.97]
[1755377665840,3.94053335,188.97,188.91,2.97]
[1755377666033,130.48,188.98,188.91,2.97]
[1755377668032,130.48,188.98,188.93,2.97]
[1755377671032,130.48,188.98,188.9,7.80585554]
[1755377671033,130.48,188.98,188.9,2.51545554]
[1755377671230,3.94027504,188.97,188.91,2.97]
[1755377671431,130.48,188.98,188.91,2.97]
[1755377671641,3.94070568,188.97,188.91,2.97]
[1755377671834,130.48,188.98,188.91,2.97]
[1755377672035,3.94070568,188.97,188.91,2.97]
[1755377672233,130.48,188.98,188.91,2.97]
[1755377672433,3.94149667,188.97,188.91,2.97]
[1755377672633,130.48,188.98,188.91,2.97]
[1755377672833,3.94149667,188.97,188.91,2.97]
[1755377673035,130.48,188.98,188.91,2.97]
[1755377673234,3.94219231,188.97,188.91,2.97]
[1755377673430,130.48,188.98,188.91,2.97]
[1755377673431,3.94219231,188.96,188.91,2.97]
[1755377673637,130.48,188.98,188.91,2.97]
[1755377673836,3.94240558,188.97,188.91,2.97]
[1755377674035,3.94240558,188.96,188.91,2.97]
[1755377674239,130.48,188.98,188.91,2.97]
[1755377674441,3.94368438,188.97,188.91,2.97]
[1755377674636,3.94368438,188.96,188.91,2.97]
[1755377674938,130.48,188.98,188.91,2.97]
[1755377675140,3.94368459,188.97,188.91,2.97]
[1755377675337,3.94368459,188.96,188.91,2.97]
[1755377675636,130.48,188.98,188.91,2.97]
[1755377675939,3.94501495,188.97,188.91,2.97]
[1755377676141,3.94501495,188.96,188.91,2.97]
[1755377676343,130.48,188.98,188.91,2.97]
[1755377676543,3.9464752,188.97,188.91,2.97]
[1755377676735,130.48,188.98,188.91,2.97]
[1755377677043,129.8,189.02,188.91,2.97]
[1755377677247,3.94725221,189.01,188.91,2.97]
[1755377677436,3.94725221,189.0,188.91,8.26]
[1755377677636,3.94725221,188.99,188.92,2.97]
[1755377677836,129.8,189.02,188.92,2.97]
[1755377678039,3.94700123,189.01,188.92,2.97]
[1755377678343,3.94700123,189.0,188.92,5.2898]
[1755377678544,3.94700123,188.99,188.93,2.97]
[1755377678744,129.8,189.02,188.93,2.97]
[1755377678937,8.42124778,189.01,188.93,2.97]
[1755377679142,3.93268221,189.0,188.93,2.97]
[1755377679341,3.93268221,188.99,188.93,2.97]
[1755377679534,129.8,189.02,188.93,2.97]
[1755377679738,8.42365241,189.01,188.93,2.97]
[1755377680040,3.93381628,189.0,188.93,2.97]
[1755377680245,3.93381628,188.99,188.93,2.97]
[1755377680446,3.93381628,188.98,188.93,2.97]
[1755377680647,129.8,189.02,188.93,2.97]
[1755377680948,8.4261896,189.01,188.93,2.97]
[1755377681143,3.93515973,189.0,188.93,2.97]
[1755377681346,3.93515973,188.99,188.93,2.97]
[1755377681545,3.93515973,188.98,188.93,2.97]
[1755377681846,129.8,189.02,188.93,2.97]
[1755377682046,8.42918707,189.01,188.93,2.97]
[1755377682242,3.93659966,189.0,188.93,2.97]
[1755377682444,3.93659966,188.99,188.93,2.97]
[1755377682637,3.93659966,188.98,188.93,2.97]
[1755377682844,134.24969038,189.02,188.93,2.97]
[1755377683043,8.43285497,189.01,188.93,2.97]
[1755377683244,3.93836498,189.0,188.93,2.97]
[1755377683548,3.93836498,188.99,188.93,2.97]
[1755377683750,3.93836498,188.98,188.93,2.97]
[1755377684050,134.24969038,189.02,188.93,2.97]
[1755377684344,3.94145616,189.01,188.94,2.97]
[1755377684551,3.94145616,189.0,188.94,2.97]
[1755377684850,3.94145616,188.99,188.94,2.97]
[1755377685150,4.44969038,189.03,188.94,2.97]
[1755377685347,8.43700006,189.02,188.94,2.97]
[1755377685655,3.94038134,189.01,188.95,2.97]
[1755377685847,129.62,189.04,188.95,2.97]
[1755377686149,3.93991006,189.03,188.95,2.97]
[1755377686350,3.93991006,189.02,188.95,2.97]
[1755377686553,3.93991006,189.01,188.95,2.97]
[1755377686850,129.62,189.04,188.95,2.97]
[1755377687046,8.43602163,189.03,188.95,2.97]
[1755377687252,3.93979231,189.02,188.95,2.97]
[1755377687446,3.93979231,189.01,188.95,2.97]
[1755377687647,129.62,189.04,188.95,2.97]
[1755377687853,3.93979238,189.03,188.95,2.97]
[1755377688045,3.93979238,189.03,188.93,44.51545554]
[1755377688046,3.93979238,189.02,188.97,2.97]
[1755377688352,129.62,189.04,188.97,2.97]
[1755377688546,3.93907249,189.03,188.97,2.97]
[1755377688746,3.93907249,189.02,188.97,2.97]
[1755377689050,129.62,189.04,188.97,2.97]
[1755377689240,3.9390519,189.03,188.97,2.97]
[1755377689444,3.9390519,189.02,188.97,2.97]
[1755377689640,129.62,189.04,188.97,2.97]
[1755377689850,3.93896632,189.03,188.97,2.97]
[1755377690050,3.93896632,189.02,188.97,2.97]
[1755377690251,129.62,189.04,188.97,2.97]
[1755377690450,3.93884286,189.03,188.97,2.97]
[1755377690752,3.93884286,189.02,188.97,2.97]
[1755377690951,129.62,189.04,188.97,2.97]
[1755377691249,3.93884286,189.03,188.97,2.97]
[1755377691450,129.62,189.04,188.97,2.97]
[1755377691751,3.93818092,189.03,188.97,2.97]
[1755377692052,129.62,189.04,188.97,2.97]
[1755377694053,129.62,189.04,188.97,8.2585]
[1755377694250,4.44969038,189.08,188.98,3.03]
[1755377694553,4.44969038,189.08,189.0,3.03]
[1755377694554,8.36592188,189.07,189.0,3.03]
[1755377694847,3.9361863,189.06,189.0,3.03]
[1755377695049,3.9361863,189.05,189.0,3.03]
[1755377695249,129.52,189.09,189.0,3.03]
[1755377695450,8.36352024,189.08,189.0,3.03]
[1755377695646,3.93505777,189.07,189.0,3.03]
[1755377695852,3.93505777,189.06,189.0,3.03]
[1755377696055,3.93505777,189.05,189.0,3.03]
[1755377696257,129.52,189.09,189.0,3.03]
[1755377696454,3.93421137,189.08,189.0,3.03]
[1755377696653,3.93421137,189.07,189.0,3.03]
[1755377696851,3.93421137,189.06,189.0,3.03]
[1755377697047,129.52,189.09,189.0,3.03]
[1755377697255,3.93423193,189.08,189.0,3.03]
[1755377697553,3.93423193,189.07,189.0,3.03]
[1755377697754,3.93423193,189.06,189.0,3.03]
[1755377697956,129.52,189.09,189.0,3.03]
[1755377698157,3.93347695,189.08,189.0,3.03]
[1755377698355,3.93347695,189.07,189.0,3.03]
[1755377698555,3.93347695,189.06,189.0,3.03]
[1755377698757,129.52,189.09,189.0,3.03]
[1755377699054,3.93279832,189.08,189.0,3.03]
[1755377699257,3.93279832,189.07,189.0,3.03]
[1755377699456,3.93279832,189.06,189.0,3.03]
[1755377699657,129.52,189.09,189.0,3.03]
[1755377699856,8.35819875,189.08,189.0,3.03]
[1755377700058,3.9325615,189.07,189.0,3.03]
[1755377700258,3.9325615,189.06,189.0,3.03]
[1755377700456,3.9325615,189.05,189.0,3.03]
[1755377700661,129.52,189.09,189.0,3.03]
[1755377700858,3.93252941,189.08,189.0,3.03]
[1755377701058,3.93252941,189.07,189.0,3.03]
[1755377701258,3.93252941,189.06,189.0,3.03]
[1755377701458,129.38,189.09,189.0,3.03]
[1755377701660,8.35747237,189.08,189.0,3.03]
[1755377701858,3.93223293,189.07,189.0,3.03]
[1755377702061,3.93223293,189.06,189.0,3.03]
[1755377702263,129.38,189.09,189.0,3.03]
[1755377702464,8.35705888,189.08,189.0,3.03]
[1755377702664,3.93203724,189.07,189.0,3.03]
[1755377702862,3.93203724,189.06,189.0,3.03]
[1755377703161,3.93203724,189.05,189.0,3.03]
[1755377703361,129.38,189.09,189.0,3.03]
[1755377703558,3.93214724,189.08,189.0,3.03]
[1755377703756,3.93214724,189.07,189.0,3.03]
[1755377703959,3.93214724,189.06,189.0,3.03]
[1755377704161,3.93214724,189.05,189.0,3.03]
[1755377704362,129.38,189.09,189.0,3.03]
[1755377704659,3.93219887,189.08,189.0,3.03]
[1755377704958,3.93219887,189.07,189.0,3.03]
[1755377705162,3.93219887,189.06,189.0,3.03]
[1755377705362,3.93219887,189.05,189.0,3.03]
[1755377705562,129.38,189.09,189.0,3.03]
[1755377705764,3.93234154,189.08,189.0,3.03]
[1755377705965,3.93234154,189.07,189.0,3.03]
[1755377706266,3.93234154,189.06,189.0,3.03]
[1755377706464,3.93234154,189.05,189.0,3.03]
[1755377706666,129.38,189.09,189.0,3.03]
[1755377706964,8.35816197,189.08,189.0,3.03]
[1755377707155,3.93248423,189.07,189.0,3.03]
[1755377707356,3.93248423,189.06,189.0,3.03]
[1755377707555,3.93248423,189.05,189.0,3.03]
[1755377707863,3.93248423,189.04,188.99,3.03]
[1755377708067,3.93248423,189.03,188.99,3.03]
[1755377708366,3.93248423,189.02,188.99,3.03]
[1755377708564,3.93248423,189.01,188.99,3.03]
[1755377708764,3.93248423,189.0,188.99,3.03]
[1755377709165,3.93248423,189.01,188.99,3.03]
[1755377709362,3.93248423,189.0,188.99,3.03]
[1755377709565,5.54179015,189.0,188.98,3.03]
[1755377709762,3.93248423,188.99,188.98,3.03]
[1755377710965,3.93248423,189.02,188.98,3.03]
[1755377711365,3.93248423,189.02,188.91,3.03]
[1755377711860,3.93248423,189.01,188.92,5.2899]
[1755377712068,4.44969038,189.06,188.93,3.03]
[1755377712263,12.81531107,189.05,188.93,3.03]
[1755377712466,8.36562069,189.04,188.93,3.03]
[1755377712766,3.93656157,189.03,188.93,3.03]
[1755377713068,8.3662172,189.02,188.93,3.03]
[1755377713265,3.93656157,189.01,188.93,3.03]
[1755377713468,3.93656157,189.0,188.93,3.03]
[1755377713669,3.93656157,188.99,188.93,3.03]
[1755377713864,4.44969038,189.03,188.93,3.03]
[1755377714168,8.36715683,189.02,188.93,3.03]
[1755377714367,3.93738798,189.01,188.93,3.03]
[1755377714567,3.93738798,189.0,188.93,3.03]
[1755377714771,3.93738798,188.99,188.93,3.03]
[1755377714973,4.44969038,189.03,188.93,3.03]
[1755377715270,8.36729689,189.02,188.93,3.03]
[1755377715467,3.93745236,189.01,188.93,3.03]
[1755377715665,3.93745236,189.0,188.93,3.03]
[1755377715974,3.93745236,188.99,188.93,3.03]
[1755377716175,4.44969038,189.03,188.93,3.03]
[1755377716371,8.36784802,189.02,188.93,3.03]
[1755377716571,3.93789199,189.01,188.93,3.03]
[1755377716875,3.93789199,189.0,188.93,3.03]
[1755377717173,3.93789199,188.99,188.93,3.03]
[1755377717370,3.93789199,188.98,188.93,3.03]
[1755377717669,4.44969038,189.03,188.93,3.03]
[1755377717869,8.36942589,189.02,188.93,3.03]
[1755377718069,4.44969038,189.03,188.93,3.03]
[1755377718070,8.36942589,189.01,188.93,3.03]
[1755377718265,3.93869753,189.0,188.93,3.03]
[1755377718466,3.93869753,188.99,188.93,3.03]
[1755377718677,3.93869753,188.98,188.93,3.03]
[1755377718871,4.44969038,189.02,188.93,3.03]
[1755377719070,8.37095989,189.01,188.93,3.03]
[1755377719274,3.93941967,189.0,188.93,3.03]
[1755377719473,3.93941967,188.99,188.93,3.03]
[1755377719773,3.93941967,188.98,188.93,3.03]
[1755377719969,4.44969038,189.02,188.93,3.03]
[1755377720168,3.94018161,189.01,188.93,3.03]
[1755377720377,3.94018161,189.0,188.93,3.03]
[1755377720573,3.94018161,188.99,188.93,3.03]
[1755377720770,2.5149557,189.04,188.94,3.05]
[1755377720771,6.96464608,189.04,188.94,3.05]
[1755377720971,3.9407384,189.03,188.94,3.05]
[1755377721178,3.9407384,189.02,188.94,3.05]
[1755377721372,3.9407384,189.01,188.94,3.05]
[1755377721578,4.44969038,189.06,188.94,3.05]
[1755377721777,8.36854259,189.05,188.94,3.05]
[1755377721977,3.94136827,189.04,188.94,3.05]
[1755377722274,3.94136827,189.03,188.94,8.3392]
[1755377722477,3.94136827,189.02,188.95,3.05]
[1755377722676,2.5149557,189.07,188.95,3.05]
[1755377722677,6.96464608,189.07,188.95,3.05]
[1755377722880,8.36815195,189.06,188.95,3.05]
[1755377723080,3.9411834,189.05,188.95,3.05]
[1755377723279,3.9411834,189.04,188.95,3.05]
[1755377723582,3.9411834,189.03,188.95,3.05]
[1755377723781,3.9411834,189.02,188.95,3.05]
[1755377723979,6.96464608,189.07,188.95,3.05]
[1755377724180,8.36898468,189.06,188.95,3.05]
[1755377724478,8.36898468,189.05,188.95,3.05]
[1755377724680,3.94158747,189.04,188.95,3.05]
[1755377724878,3.94158747,189.03,188.95,3.05]
[1755377725080,3.94158747,189.02,188.95,3.05]
[1755377725271,4.44969038,189.06,188.95,3.05]
[1755377725471,8.37054366,189.05,188.95,3.05]
[1755377725675,3.94234024,189.04,188.95,3.05]
[1755377725878,3.94234024,189.03,188.95,3.05]
[1755377726079,3.94234024,189.02,188.95,3.05]
[1755377726280,4.44969038,189.06,188.95,3.05]
[1755377726481,8.37109084,189.05,188.95,3.05]
[1755377726680,3.94260383,189.04,188.95,3.05]
[1755377726979,3.94260383,189.03,188.95,3.05]
[1755377727173,3.94260383,189.02,188.95,3.05]
[1755377727373,4.44969038,189.06,188.95,3.05]
[1755377727576,8.37169293,189.05,188.95,3.05]
[1755377727776,3.94289371,189.04,188.95,3.05]
[1755377727974,3.94289371,189.03,188.95,3.05]
[1755377728184,3.94289371,189.02,188.95,3.05]
[1755377728383,4.44969038,189.06,188.95,3.05]
[1755377728585,8.37234728,189.05,188.95,3.05]
[1755377728785,3.9432086,189.04,188.95,3.05]
[1755377729083,3.9432086,189.03,188.95,3.05]
[1755377729284,3.9432086,189.02,188.95,3.05]
[1755377729483,4.44969038,189.06,188.95,3.05]
[1755377729684,8.37292473,189.05,188.95,3.05]
[1755377729883,3.94341684,189.04,188.95,3.05]
[1755377730076,3.94341684,189.03,188.95,3.05]